[Event "Titled Tuesday Blitz September 13 Early 2022"]
[White "Narayanan, Srinath"]
[Black "Ginzburg, Yakov"]
[WhiteFideId "5018420"]
[BlackFideId "4157176"]
[WhiteElo "2459"]
[BlackElo "2265"]
[Result "0-1"]
[Round "11"]
[TimeControl "180+1"]
[Date "2022.09.13"]
[WhiteClock "0:00:05"]
[BlackClock "0:00:04"]

1. e4 {[%clk 0:02:59]}  c5 {[%clk 0:02:58]} 2. Nf3 {[%clk 0:03:00]}  e6 {[%clk 0:02:58]} 3. d4 {[%clk 0:03:00]}  cxd4 {[%clk 0:02:59]} 4. Nxd4 {[%clk 0:03:01]}  Nf6 {[%clk 0:02:59]} 5. Nc3 {[%clk 0:03:01]}  Nc6 {[%clk 0:02:59]} 6. Ndb5 {[%clk 0:02:58]}  d6 {[%clk 0:02:58]} 7. Bf4 {[%clk 0:02:58]}  e5 {[%clk 0:02:58]} 8. Bg5 {[%clk 0:02:58]}  a6 {[%clk 0:02:59]} 9. Na3 {[%clk 0:02:59]}  b5 {[%clk 0:02:59]} 10. Nd5 {[%clk 0:02:59]}  Be7 {[%clk 0:02:59]} 11. Bxf6 {[%clk 0:03:00]}  Bxf6 {[%clk 0:02:59]} 12. c4 {[%clk 0:03:00]}  O-O {[%clk 0:02:56]} 13. cxb5 {[%clk 0:02:58]}  Nd4 {[%clk 0:02:57]} 14. b6 {[%clk 0:02:52]}  Bb7 {[%clk 0:02:31]} 15. Bc4 {[%clk 0:02:52]}  Rb8 {[%clk 0:02:11]} 16. O-O {[%clk 0:02:49]}  Bxd5 {[%clk 0:02:06]} 17. Bxd5 {[%clk 0:02:50]}  Qxb6 {[%clk 0:02:01]} 18. Nc4 {[%clk 0:02:50]}  Qc5 {[%clk 0:01:49]} 19. b3 {[%clk 0:02:48]}  g6 {[%clk 0:01:41]} 20. Qg4 {[%clk 0:02:41]}  Kg7 {[%clk 0:01:34]} 21. Rad1 {[%clk 0:02:37]}  Bd8 {[%clk 0:01:32]} 22. Rd3 {[%clk 0:02:33]}  f5 {[%clk 0:01:27]} 23. Qh3 {[%clk 0:02:17]}  Ne2+ {[%clk 0:01:24]} 24. Kh1 {[%clk 0:02:16]}  Nf4 {[%clk 0:01:24]} 25. Qg3 {[%clk 0:02:14]}  Nxd3 {[%clk 0:01:19]} 26. Qxd3 {[%clk 0:02:15]}  Bb6 {[%clk 0:01:05]} 27. exf5 {[%clk 0:01:59]}  Rxf5 {[%clk 0:01:04]} 28. f3 {[%clk 0:01:58]}  Rd8 {[%clk 0:00:57]} 29. Rd1 {[%clk 0:01:57]}  Rf6 {[%clk 0:00:53]} 30. h3 {[%clk 0:01:48]}  Ba7 {[%clk 0:00:52]} 31. Qe2 {[%clk 0:01:39]}  Rf4 {[%clk 0:00:51]} 32. Be4 {[%clk 0:01:09]}  d5 {[%clk 0:00:45]} 33. Qd2 {[%clk 0:00:53]}  Bb6 {[%clk 0:00:37]} 34. Nxb6 {[%clk 0:00:31]}  Qxb6 {[%clk 0:00:34]} 35. Qc3 {[%clk 0:00:31]}  Qe6 {[%clk 0:00:14]} 36. Qc7+ {[%clk 0:00:25]}  Rd7 {[%clk 0:00:13]} 37. Bxd5 {[%clk 0:00:26]}  Rxc7 {[%clk 0:00:12]} 38. Bxe6 {[%clk 0:00:26]}  Rd4 {[%clk 0:00:10]} 39. Re1 {[%clk 0:00:25]}  Kf6 {[%clk 0:00:10]} 40. Bc4 {[%clk 0:00:26]}  Rd2 {[%clk 0:00:10]} 41. a4 {[%clk 0:00:25]}  a5 {[%clk 0:00:10]} 42. Kh2 {[%clk 0:00:23]}  Rcd7 {[%clk 0:00:10]} 43. Re3 {[%clk 0:00:21]}  Rb2 {[%clk 0:00:10]} 44. Re4 {[%clk 0:00:15]}  Rdd2 {[%clk 0:00:09]} 45. Rg4 {[%clk 0:00:15]}  h5 {[%clk 0:00:09]} 46. Rg3 {[%clk 0:00:16]}  g5 {[%clk 0:00:09]} 47. h4 {[%clk 0:00:16]}  gxh4 {[%clk 0:00:05]} 48. Rg8 {[%clk 0:00:17]}  Kf5 {[%clk 0:00:05]} 49. Kh3 {[%clk 0:00:14]}  Rd1 {[%clk 0:00:05]} 50. Rf8+ {[%clk 0:00:14]}  Kg5 {[%clk 0:00:05]} 51. Rg8+ {[%clk 0:00:14]}  Kf4 {[%clk 0:00:05]} 52. Kh2 {[%clk 0:00:12]}  h3 {[%clk 0:00:03]} 53. Rf8+ {[%clk 0:00:12]}  Ke3 {[%clk 0:00:03]} 54. Kxh3 {[%clk 0:00:13]}  Rh1+ {[%clk 0:00:03]} 55. Kg3 {[%clk 0:00:13]}  Rg1 {[%clk 0:00:03]} 56. Re8 {[%clk 0:00:10]}  Rbxg2+ {[%clk 0:00:03]} 57. Kh3 {[%clk 0:00:10]}  Rg5 {[%clk 0:00:04]} 58. Rd8 {[%clk 0:00:05]}  Rh1# {[%clk 0:00:04]} 0-1


[Site "https://www.chess.com"]

[Event "Titled Tuesday Blitz September 13 Early 2022"]
[White "Rustemov, Alexander"]
[Black "Vaibhav Jayant Raut"]
[WhiteFideId "4119002"]
[BlackFideId "5089034"]
[WhiteElo "2859"]
[BlackElo "2122"]
[Result "1-0"]
[Round "11"]
[TimeControl "180+1"]
[Date "2022.09.13"]
[WhiteClock "0:01:15"]
[BlackClock "0:00:01"]

1. d4 {[%clk 0:03:00]}  Nf6 {[%clk 0:02:58]} 2. c4 {[%clk 0:03:01]}  e6 {[%clk 0:02:55]} 3. Nf3 {[%clk 0:03:01]}  Bb4+ {[%clk 0:02:54]} 4. Bd2 {[%clk 0:03:01]}  Qe7 {[%clk 0:02:53]} 5. g3 {[%clk 0:03:01]}  O-O {[%clk 0:02:51]} 6. Bg2 {[%clk 0:03:01]}  Nc6 {[%clk 0:02:44]} 7. O-O {[%clk 0:03:00]}  Bxd2 {[%clk 0:02:44]} 8. Qxd2 {[%clk 0:02:59]}  d5 {[%clk 0:02:28]} 9. b3 {[%clk 0:02:57]}  Rd8 {[%clk 0:02:27]} 10. Qb2 {[%clk 0:02:56]}  Ne4 {[%clk 0:02:19]} 11. e3 {[%clk 0:02:54]}  Bd7 {[%clk 0:02:02]} 12. Nfd2 {[%clk 0:02:52]}  Nxd2 {[%clk 0:02:01]} 13. Nxd2 {[%clk 0:02:52]}  Be8 {[%clk 0:02:01]} 14. Rac1 {[%clk 0:02:49]}  Nb4 {[%clk 0:01:55]} 15. Qb1 {[%clk 0:02:29]}  c6 {[%clk 0:01:52]} 16. a3 {[%clk 0:02:27]}  Na6 {[%clk 0:01:52]} 17. Qb2 {[%clk 0:02:27]}  Nb8 {[%clk 0:01:47]} 18. b4 {[%clk 0:02:24]}  Nd7 {[%clk 0:01:46]} 19. Nb3 {[%clk 0:02:23]}  Nb6 {[%clk 0:01:42]} 20. Na5 {[%clk 0:02:14]}  dxc4 {[%clk 0:01:37]} 21. Nxc4 {[%clk 0:02:13]}  Nxc4 {[%clk 0:01:33]} 22. Rxc4 {[%clk 0:02:13]}  a6 {[%clk 0:01:29]} 23. Rc5 {[%clk 0:02:12]}  f6 {[%clk 0:01:28]} 24. h3 {[%clk 0:02:05]}  Bg6 {[%clk 0:01:28]} 25. Rfc1 {[%clk 0:02:04]}  Re8 {[%clk 0:01:18]} 26. a4 {[%clk 0:02:03]}  e5 {[%clk 0:01:02]} 27. d5 {[%clk 0:01:58]}  e4 {[%clk 0:00:35]} 28. dxc6 {[%clk 0:01:56]}  bxc6 {[%clk 0:00:35]} 29. Rxc6 {[%clk 0:01:56]}  Rab8 {[%clk 0:00:36]} 30. b5 {[%clk 0:01:53]}  axb5 {[%clk 0:00:35]} 31. axb5 {[%clk 0:01:54]}  Bf7 {[%clk 0:00:31]} 32. b6 {[%clk 0:01:52]}  Bd5 {[%clk 0:00:22]} 33. Rc7 {[%clk 0:01:46]}  Qd6 {[%clk 0:00:22]} 34. b7 {[%clk 0:01:45]}  Qa6 {[%clk 0:00:16]} 35. Qd4 {[%clk 0:01:29]}  Red8 {[%clk 0:00:09]} 36. Bxe4 {[%clk 0:01:21]}  Bxe4 {[%clk 0:00:02]} 37. Qxe4 {[%clk 0:01:21]}  Qd6 {[%clk 0:00:01]} 38. Qe7 {[%clk 0:01:15]}  Qxe7 {[%clk 0:00:01]} 39. Rxe7 {[%clk 0:01:16]}  Re8 {[%clk 0:00:01]} 40. Rcc7 {[%clk 0:01:15]} 1-0


[Site "https://www.chess.com"]

[Event "Titled Tuesday Blitz September 13 Early 2022"]
[White "Sarana, Alexey"]
[Black "Grover, Sahaj"]
[WhiteFideId "24133795"]
[BlackFideId "5021103"]
[WhiteElo "2689"]
[BlackElo "2432"]
[Result "1-0"]
[Round "11"]
[TimeControl "180+1"]
[Date "2022.09.13"]
[WhiteClock "0:01:56"]
[BlackClock "0:01:49"]

1. d4 {[%clk 0:03:00]}  d5 {[%clk 0:02:59]} 2. c4 {[%clk 0:03:01]}  e6 {[%clk 0:03:00]} 3. Nc3 {[%clk 0:03:02]}  a6 {[%clk 0:03:00]} 4. cxd5 {[%clk 0:03:01]}  exd5 {[%clk 0:03:00]} 5. Bf4 {[%clk 0:03:02]}  Nf6 {[%clk 0:02:58]} 6. e3 {[%clk 0:03:02]}  c5 {[%clk 0:02:58]} 7. Bd3 {[%clk 0:02:59]}  Nc6 {[%clk 0:02:50]} 8. Nge2 {[%clk 0:02:58]}  cxd4 {[%clk 0:02:49]} 9. exd4 {[%clk 0:02:59]}  Bd6 {[%clk 0:02:49]} 10. O-O {[%clk 0:02:55]}  O-O {[%clk 0:02:49]} 11. Qd2 {[%clk 0:02:53]}  Bg4 {[%clk 0:02:43]} 12. Bg5 {[%clk 0:02:48]}  Be7 {[%clk 0:02:33]} 13. Ng3 {[%clk 0:02:35]}  h6 {[%clk 0:02:17]} 14. Bxh6 {[%clk 0:02:21]}  Nxd4 {[%clk 0:01:53]} 15. Bxg7 {[%clk 0:02:13]}  Kxg7 {[%clk 0:01:52]} 16. Qg5+ {[%clk 0:02:13]}  Kh8 {[%clk 0:01:52]} 17. Qh6+ {[%clk 0:02:13]}  Kg8 {[%clk 0:01:53]} 18. h3 {[%clk 0:02:10]}  Qd7 {[%clk 0:01:48]} 19. hxg4 {[%clk 0:01:57]}  Qxg4 {[%clk 0:01:49]} 20. Nxd5 {[%clk 0:01:56]} 1-0


[Site "https://www.chess.com"]

[Event "Titled Tuesday Blitz September 13 Early 2022"]
[White "Sargsyan, Anna M."]
[Black "Pinero Rodriguez, Carlos Jose"]
[WhiteFideId "13308130"]
[BlackFideId "3901726"]
[WhiteElo "2271"]
[BlackElo "2053"]
[Result "1-0"]
[Round "11"]
[TimeControl "180+1"]
[Date "2022.09.13"]
[WhiteClock "0:01:28"]
[BlackClock "0:00:47"]

1. d4 {[%clk 0:03:00]}  Nf6 {[%clk 0:02:59]} 2. c4 {[%clk 0:03:01]}  e6 {[%clk 0:02:59]} 3. Nf3 {[%clk 0:03:01]}  Bb4+ {[%clk 0:03:00]} 4. Bd2 {[%clk 0:03:01]}  Qe7 {[%clk 0:03:00]} 5. g3 {[%clk 0:03:01]}  O-O {[%clk 0:03:00]} 6. Bg2 {[%clk 0:03:02]}  Bxd2+ {[%clk 0:03:00]} 7. Nbxd2 {[%clk 0:03:01]}  d6 {[%clk 0:03:01]} 8. O-O {[%clk 0:03:02]}  e5 {[%clk 0:03:01]} 9. d5 {[%clk 0:03:01]}  a5 {[%clk 0:03:01]} 10. a3 {[%clk 0:03:00]}  a4 {[%clk 0:02:58]} 11. e4 {[%clk 0:03:00]}  Nbd7 {[%clk 0:02:58]} 12. Ne1 {[%clk 0:02:54]}  Nc5 {[%clk 0:02:57]} 13. Qe2 {[%clk 0:02:52]}  b6 {[%clk 0:02:55]} 14. Rc1 {[%clk 0:02:47]}  Re8 {[%clk 0:02:54]} 15. Nc2 {[%clk 0:02:46]}  Bg4 {[%clk 0:02:42]} 16. f3 {[%clk 0:02:45]}  Bc8 {[%clk 0:02:43]} 17. Ne3 {[%clk 0:02:42]}  Ba6 {[%clk 0:02:33]} 18. Kh1 {[%clk 0:02:34]}  Bc8 {[%clk 0:02:31]} 19. Rc3 {[%clk 0:02:26]}  Bd7 {[%clk 0:02:29]} 20. g4 {[%clk 0:02:15]}  g6 {[%clk 0:02:20]} 21. Qf2 {[%clk 0:02:14]}  g5 {[%clk 0:02:09]} 22. h4 {[%clk 0:02:12]}  h6 {[%clk 0:02:09]} 23. Rg1 {[%clk 0:02:04]}  Kg7 {[%clk 0:02:06]} 24. Bh3 {[%clk 0:02:00]}  Nh7 {[%clk 0:02:03]} 25. Ndf1 {[%clk 0:01:52]}  Nf6 {[%clk 0:02:01]} 26. Ng3 {[%clk 0:01:51]}  Rh8 {[%clk 0:02:02]} 27. Ngf5+ {[%clk 0:01:51]}  Kf8 {[%clk 0:02:00]} 28. Nxe7 {[%clk 0:01:50]}  Kxe7 {[%clk 0:02:01]} 29. Nf5+ {[%clk 0:01:50]}  Bxf5 {[%clk 0:02:00]} 30. gxf5 {[%clk 0:01:51]}  Rag8 {[%clk 0:01:53]} 31. Qe3 {[%clk 0:01:44]}  gxh4 {[%clk 0:01:42]} 32. Rxg8 {[%clk 0:01:44]}  Rxg8 {[%clk 0:01:43]} 33. Rc2 {[%clk 0:01:40]}  Rg3 {[%clk 0:01:37]} 34. Kh2 {[%clk 0:01:34]}  Ncxe4 {[%clk 0:01:24]} 35. Rg2 {[%clk 0:01:32]}  Nh5 {[%clk 0:00:47]} 36. Qxe4 {[%clk 0:01:28]} 1-0


[Site "https://www.chess.com"]

[Event "Titled Tuesday Blitz September 13 Early 2022"]
[White "Solon, Nathan"]
[Black "Bykhovsky, Anatoly"]
[WhiteFideId "2017229"]
[BlackFideId "2806991"]
[WhiteElo "2617"]
[BlackElo "2540"]
[Result "0-1"]
[Round "11"]
[TimeControl "180+1"]
[Date "2022.09.13"]
[WhiteClock "0:00:53"]
[BlackClock "0:01:44"]

1. e4 {[%clk 0:03:00]}  Nf6 {[%clk 0:02:57]} 2. d3 {[%clk 0:03:00]}  e5 {[%clk 0:02:57]} 3. Nf3 {[%clk 0:03:00]}  Nc6 {[%clk 0:02:58]} 4. g3 {[%clk 0:03:00]}  d5 {[%clk 0:02:58]} 5. exd5 {[%clk 0:03:01]}  Nxd5 {[%clk 0:02:58]} 6. Bg2 {[%clk 0:03:02]}  g6 {[%clk 0:02:58]} 7. O-O {[%clk 0:03:02]}  Bg7 {[%clk 0:02:57]} 8. Re1 {[%clk 0:03:02]}  O-O {[%clk 0:02:57]} 9. Nc3 {[%clk 0:03:01]}  Nb6 {[%clk 0:02:53]} 10. a4 {[%clk 0:02:56]}  a5 {[%clk 0:02:52]} 11. Be3 {[%clk 0:02:56]}  h6 {[%clk 0:02:51]} 12. Bxb6 {[%clk 0:02:50]}  cxb6 {[%clk 0:02:52]} 13. Nb5 {[%clk 0:02:51]}  Bf5 {[%clk 0:02:47]} 14. Nd2 {[%clk 0:02:45]}  Kh7 {[%clk 0:02:43]} 15. Nc4 {[%clk 0:01:56]}  Be6 {[%clk 0:02:38]} 16. Ncd6 {[%clk 0:01:44]}  Qd7 {[%clk 0:02:35]} 17. h4 {[%clk 0:01:25]}  f5 {[%clk 0:02:33]} 18. h5 {[%clk 0:01:23]}  g5 {[%clk 0:02:32]} 19. c3 {[%clk 0:01:17]}  Rfd8 {[%clk 0:02:22]} 20. Qc2 {[%clk 0:01:14]}  Kh8 {[%clk 0:02:12]} 21. Re2 {[%clk 0:01:10]}  g4 {[%clk 0:01:49]} 22. Rae1 {[%clk 0:01:09]}  Qe7 {[%clk 0:01:48]} 23. Nc4 {[%clk 0:01:08]}  Bxc4 {[%clk 0:01:47]} 24. dxc4 {[%clk 0:01:09]}  e4 {[%clk 0:01:48]} 25. Bxe4 {[%clk 0:00:56]}  fxe4 {[%clk 0:01:46]} 26. Rxe4 {[%clk 0:00:57]}  Qf7 {[%clk 0:01:45]} 27. Rxg4 {[%clk 0:00:55]}  Ne5 {[%clk 0:01:44]} 28. Rf4 {[%clk 0:00:53]}  Nf3+ {[%clk 0:01:44]} 0-1


[Site "https://www.chess.com"]

[Event "Titled Tuesday Blitz September 13 Early 2022"]
[White "Vidit, Santosh Gujrathi"]
[Black "Xiong, Jeffery"]
[WhiteFideId "5029465"]
[BlackFideId "2047640"]
[WhiteElo "2654"]
[BlackElo "2714"]
[Result "1-0"]
[Round "11"]
[TimeControl "180+1"]
[Date "2022.09.13"]
[WhiteClock "0:00:21"]
[BlackClock "0:00:01"]

1. c4 {[%clk 0:03:00]}  e6 {[%clk 0:02:58]} 2. Nc3 {[%clk 0:03:00]}  d5 {[%clk 0:02:58]} 3. d4 {[%clk 0:03:00]}  Nf6 {[%clk 0:02:59]} 4. cxd5 {[%clk 0:03:00]}  exd5 {[%clk 0:02:59]} 5. Bg5 {[%clk 0:03:01]}  c6 {[%clk 0:03:00]} 6. e3 {[%clk 0:03:01]}  Bd6 {[%clk 0:03:01]} 7. Bd3 {[%clk 0:03:00]}  O-O {[%clk 0:03:01]} 8. Nf3 {[%clk 0:02:58]}  Be6 {[%clk 0:03:01]} 9. Qb3 {[%clk 0:02:58]}  b6 {[%clk 0:03:01]} 10. h3 {[%clk 0:02:56]}  Nbd7 {[%clk 0:03:00]} 11. O-O {[%clk 0:02:55]}  c5 {[%clk 0:02:58]} 12. Qc2 {[%clk 0:02:54]}  h6 {[%clk 0:02:58]} 13. Bf4 {[%clk 0:02:51]}  Bxf4 {[%clk 0:02:43]} 14. exf4 {[%clk 0:02:52]}  c4 {[%clk 0:02:44]} 15. f5 {[%clk 0:02:40]}  cxd3 {[%clk 0:02:42]} 16. Qxd3 {[%clk 0:02:41]}  Re8 {[%clk 0:02:40]} 17. Rfe1 {[%clk 0:02:41]}  Nf8 {[%clk 0:02:36]} 18. fxe6 {[%clk 0:02:40]}  Nxe6 {[%clk 0:02:37]} 19. g3 {[%clk 0:02:35]}  a6 {[%clk 0:02:33]} 20. Kg2 {[%clk 0:02:33]}  b5 {[%clk 0:02:34]} 21. a3 {[%clk 0:02:30]}  Qb6 {[%clk 0:02:34]} 22. Re5 {[%clk 0:02:29]}  Red8 {[%clk 0:02:32]} 23. Rae1 {[%clk 0:02:27]}  Rac8 {[%clk 0:02:07]} 24. Rf5 {[%clk 0:02:16]}  Rc4 {[%clk 0:01:38]} 25. Qe3 {[%clk 0:02:08]}  b4 {[%clk 0:01:28]} 26. axb4 {[%clk 0:02:07]}  Rxb4 {[%clk 0:01:29]} 27. Rxf6 {[%clk 0:02:00]}  gxf6 {[%clk 0:01:29]} 28. Qxh6 {[%clk 0:02:00]}  Ng7 {[%clk 0:00:59]} 29. g4 {[%clk 0:01:23]}  Qd6 {[%clk 0:00:50]} 30. Re3 {[%clk 0:00:49]}  Ne6 {[%clk 0:00:47]} 31. Ne2 {[%clk 0:00:45]}  Rxb2 {[%clk 0:00:46]} 32. Nh4 {[%clk 0:00:36]}  Rxe2 {[%clk 0:00:37]} 33. Nf5 {[%clk 0:00:36]}  Qf8 {[%clk 0:00:24]} 34. Rxe2 {[%clk 0:00:30]}  Qxh6 {[%clk 0:00:23]} 35. Nxh6+ {[%clk 0:00:31]}  Kf8 {[%clk 0:00:10]} 36. Ra2 {[%clk 0:00:29]}  Nxd4 {[%clk 0:00:07]} 37. Rxa6 {[%clk 0:00:28]}  Kg7 {[%clk 0:00:08]} 38. Ra4 {[%clk 0:00:24]}  Kxh6 {[%clk 0:00:05]} 39. Rxd4 {[%clk 0:00:24]}  f5 {[%clk 0:00:06]} 40. Kg3 {[%clk 0:00:17]}  fxg4 {[%clk 0:00:07]} 41. hxg4 {[%clk 0:00:17]}  Kg6 {[%clk 0:00:08]} 42. Kf4 {[%clk 0:00:17]}  f6 {[%clk 0:00:08]} 43. Ke3 {[%clk 0:00:17]}  Kg5 {[%clk 0:00:08]} 44. f3 {[%clk 0:00:17]}  Re8+ {[%clk 0:00:08]} 45. Kf2 {[%clk 0:00:18]}  Rd8 {[%clk 0:00:06]} 46. Kg3 {[%clk 0:00:18]}  Rd7 {[%clk 0:00:05]} 47. f4+ {[%clk 0:00:18]}  Kg6 {[%clk 0:00:05]} 48. Kf3 {[%clk 0:00:19]}  Rd8 {[%clk 0:00:05]} 49. Kg3 {[%clk 0:00:19]}  Rd7 {[%clk 0:00:05]} 50. Kf3 {[%clk 0:00:20]}  Rd8 {[%clk 0:00:06]} 51. Rd2 {[%clk 0:00:20]}  Rd7 {[%clk 0:00:02]} 52. f5+ {[%clk 0:00:21]}  Kg7 {[%clk 0:00:02]} 53. Kf4 {[%clk 0:00:21]}  Kf7 {[%clk 0:00:01]} 54. Rd3 {[%clk 0:00:21]} 1-0


[Site "https://www.chess.com"]